fUST/lending_fUST_20260107
["ID","MTS","AMOUNT","RATE_DAILY","PERIOD"]
[400724067,1767798653166,-150.0,0.00024658,2]
[400724068,1767798653176,-1000.0,0.00024666,2]
[400724069,1767798653185,-259.51,0.000247,2]
[400724070,1767798653195,-151.6,0.000247,7]
[400724071,1767798653204,-500.0,0.00024754,2]
[400724072,1767798653214,-172.0,0.0002481,2]
[400724073,1767798653223,-312.0,0.00024815,2]
[400724074,1767798653232,-594.0,0.00024932,7]
[400724075,1767798653242,-600.0,0.00024938,10]
[400724076,1767798653251,-1181.98338789,0.00024941,2]
[400724077,1767798653262,-573.0,0.00025,2]
[400724078,1767798653271,-167.0,0.00025,7]
[400724079,1767798653281,-594.0,0.00025,7]
[400724080,1767798653290,-172.0,0.00025085,2]
[400724081,1767798653299,-500.0,0.00025118,7]
[400724082,1767798653309,-1041.66666667,0.00025123,10]
[400724083,1767798653318,-3416.1339166,0.00025133,2]
[400724084,1767798653327,-250.0,0.00025205,2]
[400724085,1767798653337,-282.8,0.00025259,2]
[400724086,1767798653346,-500.0,0.00025275,7]
[400724087,1767798653355,-1000.0,0.00025336,7]
[400724088,1767798653364,-181.80617065,0.00025338,8]
[400724089,1767798653374,-168.0,0.00025348,2]
[400724090,1767798653384,-1000.0,0.00025404,7]
[400724091,1767798653393,-1000.0,0.00025476,7]
[400724092,1767798653402,-1000.0,0.00025498,7]
[400724093,1767798653414,-168.0,0.00025536,2]
[400724094,1767798653426,-500.0,0.0002563,7]
[400724095,1767798653435,-45804.8909226,0.0002567,2]
[400724096,1767798653444,-8831.11785104,0.0002567,2]
[400724097,1767798653454,-45804.8909226,0.00025699,2]
[400724098,1767798653464,-8831.11785104,0.00025699,2]
[400724099,1767798653473,-3000.0,0.000257,2]
[400724100,1767798653482,-250.0,0.000257,10]
[400724101,1767798653494,-198.623087,0.000257,2]
[400724102,1767798653504,-3000.0,0.0002571,2]
[400724103,1767798653513,-132.72087456,0.00025712,2]
[400724104,1767798653523,-3000.0,0.0002572,2]
[400724105,1767798653532,-3000.0,0.0002573,2]
[400724106,1767798653542,-3000.0,0.0002574,2]
[400724107,1767798653551,-3000.0,0.0002575,2]
[400724108,1767798653560,-45804.8909226,0.0002575,2]
[400724109,1767798653570,-8831.11785104,0.0002575,2]
[400724110,1767798653580,-350.0,0.00025753,2]
[400724111,1767798653589,-3000.0,0.0002576,2]
[400724112,1767798653599,-3000.0,0.0002577,2]
[400724113,1767798653608,-3000.0,0.0002578,2]
[400724114,1767798653617,-3000.0,0.0002579,2]
[400724115,1767798653627,-3000.0,0.000258,2]
[400724116,1767798653637,-250.0,0.000258,10]
[400724117,1767798653646,-3000.0,0.0002581,2]
[400724118,1767798653655,-3000.0,0.0002582,2]
[400724119,1767798653665,-3000.0,0.0002583,2]
[400724120,1767798653675,-3000.0,0.0002584,2]
[400724121,1767798653685,-3000.0,0.0002585,2]
[400724122,1767798653696,-45804.8909226,0.0002585,2]
[400724123,1767798653706,-8831.11785104,0.0002585,2]
[400724124,1767798653715,-3000.0,0.0002586,2]
[400724125,1767798653725,-3000.0,0.0002587,2]
[400724126,1767798653734,-3000.0,0.0002588,2]
[400724127,1767798653743,-521.15487599,0.0002588,2]
[400724128,1767798653753,-3000.0,0.0002589,2]
[400724129,1767798653762,-594.0,0.0002589,7]
[400724130,1767798653772,-3000.0,0.000259,2]
[400724131,1767798653782,-250.0,0.000259,10]
[400724132,1767798653792,-3000.0,0.0002591,2]
[400724133,1767798653801,-3000.0,0.0002592,2]
[400724134,1767798653811,-3000.0,0.0002593,2]
[400724135,1767798653821,-3000.0,0.0002594,2]
[400724136,1767798653831,-3000.0,0.0002595,2]
[400724137,1767798653841,-3000.0,0.0002596,2]
[400724138,1767798653851,-3000.0,0.0002597,2]
[400724139,1767798653860,-45804.8909226,0.0002597,2]
[400724140,1767798653870,-8831.11785104,0.0002597,2]
[400724141,1767798653881,-392.0433415,0.00025974,2]
[400724142,1767798653890,-3000.0,0.0002598,2]
[400724143,1767798653900,-225.672265,0.0002598,7]
[400724144,1767798653910,-225.672265,0.0002598,7]
[400724145,1767798653920,-225.672265,0.0002598,7]
[400724146,1767798653931,-225.672265,0.0002598,7]
[400724148,1767798653940,-634.815792,0.0002598,7]
[400724150,1767798653950,-151.0,0.0002598,7]
[400724152,1767798653959,-634.815792,0.0002598,7]
[400724153,1767798653969,-247.352857,0.0002598,7]
[400724154,1767798653979,-151.0,0.0002598,7]
[400724155,1767798653988,-634.815792,0.0002598,7]
[400724157,1767798653998,-247.352857,0.0002598,7]
[400724158,1767798654007,-634.815792,0.0002598,7]
[400724159,1767798654017,-247.352857,0.0002598,7]
[400724160,1767798654027,-247.352857,0.0002598,7]
[400724161,1767798654036,-3000.0,0.0002599,2]
[400724162,1767798654046,-45804.8909226,0.0002599,2]
[400724163,1767798654056,-8831.11785104,0.0002599,2]
[400724164,1767798654076,-17467.00445744,0.00026,2]
[400724165,1767798654087,-161.0,0.00026,5]
[400724166,1767798654098,-150.35,0.00026,7]
[400724167,1767798654108,-3000.0,0.00026,2]
[400724168,1767798654118,-250.0,0.00026,10]
[400724169,1767798654127,-2083.304351,0.00026,2]
[400724170,1767798654137,-2083.304351,0.00026,2]
[400724171,1767798654147,-2083.304351,0.00026,2]
[400724172,1767798654158,-2083.304351,0.00026,2]
[400724173,1767798654167,-259.51,0.00026,2]
[400724174,1767798654178,-3000.0,0.0002601,2]
[400724175,1767798654188,-225.672265,0.00026015,7]
[400724176,1767798654199,-225.672265,0.00026015,7]
[400724177,1767798654210,-225.672265,0.00026015,7]
[400724178,1767798654219,-225.672265,0.00026015,7]
[400724179,1767798654472,-634.815792,0.00026015,7]
[400724180,1767798654483,-151.0,0.00026015,7]
[400724181,1767798654494,-634.815792,0.00026015,7]
[400724182,1767798654505,-247.352857,0.00026015,7]
[400724183,1767798654514,-151.0,0.00026015,7]
[400724184,1767798654523,-634.815792,0.00026015,7]
[400724185,1767798654533,-247.352857,0.00026015,7]
[400724186,1767798654543,-634.815792,0.00026015,7]
[400724187,1767798654552,-247.352857,0.00026015,7]
[400724188,1767798654562,-247.352857,0.00026015,7]
[400724189,1767798654572,-45804.8909226,0.00026017,2]
[400724190,1767798654581,-8831.11785104,0.00026017,2]
[400724191,1767798654591,-3000.0,0.0002602,2]
[400724192,1767798654600,-4377.0,0.00026025,2]
[400724193,1767798654610,-1041.66666667,0.00026027,7]
[400724194,1767798654619,-151.0,0.00026027,7]
[400724195,1767798654628,-151.0,0.00026027,7]
[400724196,1767798654638,-151.0,0.00026027,7]
[400724197,1767798654647,-289.726143,0.00026027,7]
[400724198,1767798654657,-194.927323,0.00026027,7]
[400724199,1767798654666,-194.927323,0.00026027,7]
[400724200,1767798654676,-194.927323,0.00026027,7]
[400724201,1767798654685,-194.927323,0.00026027,7]
[400724202,1767798654695,-214.456704,0.00026027,7]
[400724203,1767798654704,-214.456704,0.00026027,7]
[400724204,1767798654714,-214.456704,0.00026027,7]
[400724205,1767798654723,-214.456704,0.00026027,7]
[400724206,1767798654733,-530.111159,0.00026027,7]
[400724207,1767798654743,-1016.281206,0.00026027,7]
[400724208,1767798654753,-530.111159,0.00026027,7]
[400724209,1767798654762,-1016.281206,0.00026027,7]
[400724210,1767798654772,-530.111159,0.00026027,7]
[400724211,1767798654782,-1016.281206,0.00026027,7]
[400724212,1767798654792,-530.111159,0.00026027,7]
[400724213,1767798654801,-1016.281206,0.00026027,7]
[400724214,1767798654811,-530.111159,0.00026027,7]
[400724215,1767798654821,-1016.281206,0.00026027,7]
[400724216,1767798654830,-530.111159,0.00026027,7]
[400724217,1767798654840,-1016.281206,0.00026027,7]
[400724218,1767798654849,-530.111159,0.00026027,7]
[400724219,1767798654859,-530.111159,0.00026027,7]
[400724220,1767798654868,-1016.281206,0.00026027,7]
[400724221,1767798654877,-1016.281206,0.00026027,7]
[400724222,1767798654887,-218.702509,0.00026027,7]
[400724223,1767798654895,-218.702509,0.00026027,7]
[400724224,1767798654905,-609.666208,0.00026027,7]
[400724225,1767798654916,-609.666208,0.00026027,7]
[400724226,1767798654928,-218.702509,0.00026027,7]
[400724227,1767798654937,-218.702509,0.00026027,7]
[400724228,1767798654947,-609.666208,0.00026027,7]
[400724229,1767798654956,-609.666208,0.00026027,7]
[400724230,1767798654965,-218.702509,0.00026027,7]
[400724231,1767798654975,-218.702509,0.00026027,7]
[400724232,1767798654984,-609.666208,0.00026027,7]
[400724233,1767798654994,-609.666208,0.00026027,7]
[400724234,1767798655004,-218.702509,0.00026027,7]
[400724235,1767798655013,-218.702509,0.00026027,7]
[400724236,1767798655022,-609.666208,0.00026027,7]
[400724237,1767798655033,-609.666208,0.00026027,7]
[400724238,1767798655044,-151.0,0.00026027,7]
[400724239,1767798655053,-179.448151,0.00026027,7]
[400724240,1767798655062,-184.812283,0.00026027,7]
[400724241,1767798655071,-184.812283,0.00026027,7]
[400724242,1767798655081,-184.812283,0.00026027,7]
[400724243,1767798655091,-184.812283,0.00026027,7]
[400724244,1767798655100,-184.812283,0.00026027,7]
[400724245,1767798655109,-184.812283,0.00026027,7]
[400724246,1767798655118,-184.812283,0.00026027,7]
[400724247,1767798655127,-184.812283,0.00026027,7]
[400724248,1767798655135,-151.0,0.00026027,7]
[400724249,1767798655145,-151.0,0.00026027,7]
[400724250,1767798655155,-151.0,0.00026027,7]
[400724251,1767798655168,-151.0,0.00026027,7]
[400724252,1767798655178,-151.0,0.00026027,7]
[400724253,1767798655188,-151.0,0.00026027,7]
[400724254,1767798655198,-205.742012,0.00026027,7]
[400724255,1767798655207,-205.742012,0.00026027,7]
[400724256,1767798655216,-205.742012,0.00026027,7]
[400724257,1767798655227,-205.742012,0.00026027,7]
[400724258,1767798655237,-151.0,0.00026027,7]
[400724259,1767798655247,-215.570059,0.00026027,7]
[400724260,1767798655257,-206.665209,0.00026027,7]
[400724261,1767798655267,-215.570059,0.00026027,7]
[400724262,1767798655277,-206.665209,0.00026027,7]
[400724263,1767798655286,-215.570059,0.00026027,7]
[400724264,1767798655297,-206.665209,0.00026027,7]
[400724265,1767798655306,-215.570059,0.00026027,7]
[400724266,1767798655316,-206.665209,0.00026027,7]
[400724267,1767798655326,-390.92977,0.00026027,7]
[400724268,1767798655335,-390.92977,0.00026027,7]
[400724269,1767798655345,-390.92977,0.00026027,7]
[400724270,1767798655355,-390.92977,0.00026027,7]
[400724271,1767798655365,-207.061221,0.00026027,7]
[400724272,1767798655375,-390.92977,0.00026027,7]
[400724273,1767798655385,-390.92977,0.00026027,7]
[400724274,1767798655394,-390.92977,0.00026027,7]
[400724275,1767798655405,-390.92977,0.00026027,7]
[400724276,1767798655417,-151.0,0.00026027,7]
[400724277,1767798655426,-177.524366,0.00026027,7]
[400724278,1767798655436,-232.576988,0.00026027,7]
[400724279,1767798655447,-186.329815,0.00026027,7]
[400724280,1767798655456,-186.329815,0.00026027,7]
[400724281,1767798655466,-186.329815,0.00026027,7]
[400724282,1767798655475,-186.329815,0.00026027,7]
[400724283,1767798655487,-186.329815,0.00026027,7]
[400724284,1767798655497,-186.329815,0.00026027,7]
[400724285,1767798655507,-186.329815,0.00026027,7]
[400724286,1767798655520,-186.329815,0.00026027,7]
[400724287,1767798655530,-412.629762,0.00026027,7]
[400724288,1767798655540,-412.629762,0.00026027,7]
[400724289,1767798655549,-151.0,0.00026027,7]
[400724290,1767798655560,-151.0,0.00026027,7]
[400724291,1767798655569,-412.629762,0.00026027,7]
[400724292,1767798655579,-412.629762,0.00026027,7]
[400724293,1767798655589,-151.0,0.00026027,7]
[400724294,1767798655598,-151.0,0.00026027,7]
[400724295,1767798655607,-412.629762,0.00026027,7]
[400724296,1767798655617,-412.629762,0.00026027,7]
[400724297,1767798655626,-412.629762,0.00026027,7]
[400724298,1767798655635,-412.629762,0.00026027,7]
[400724299,1767798655644,-164.70126,0.00026027,7]
[400724300,1767798655654,-187.815389,0.00026027,7]
[400724301,1767798655663,-187.815389,0.00026027,7]
[400724302,1767798655672,-151.0,0.00026027,7]
[400724303,1767798655682,-187.815389,0.00026027,7]
[400724304,1767798655691,-187.815389,0.00026027,7]
[400724305,1767798655700,-151.0,0.00026027,7]
[400724306,1767798655710,-151.0,0.00026027,7]
[400724307,1767798655720,-151.0,0.00026027,7]
[400724308,1767798655730,-151.0,0.00026027,7]
[400724309,1767798655740,-151.0,0.00026027,7]
[400724310,1767798655750,-193.751702,0.00026027,7]
[400724311,1767798655759,-151.0,0.00026027,7]
[400724312,1767798655768,-151.0,0.00026027,2]
[400724313,1767798655777,-151.0,0.00026027,7]
[400724314,1767798655787,-151.0,0.00026027,7]
[400724315,1767798655796,-151.0,0.00026027,7]
[400724316,1767798655806,-151.0,0.00026027,7]
[400724317,1767798655816,-612.995739,0.00026027,7]
[400724318,1767798655826,-612.995739,0.00026027,7]
[400724319,1767798655835,-151.0,0.00026027,7]
[400724320,1767798655845,-612.995739,0.00026027,7]
[400724321,1767798655855,-151.0,0.00026027,7]
[400724322,1767798655867,-612.995739,0.00026027,7]
[400724323,1767798655877,-1664.343388,0.00026027,7]
[400724324,1767798655887,-1664.343388,0.00026027,7]
[400724325,1767798655896,-3000.0,0.0002603,2]
[400724326,1767798655906,-3000.0,0.0002604,2]
[400724327,1767798655916,-3000.0,0.0002605,2]
[400724328,1767798655927,-3000.0,0.0002606,2]
[400724329,1767798655937,-45804.8909226,0.0002606,2]
[400724330,1767798655947,-8831.11785104,0.0002606,2]
[400724331,1767798655957,-3000.0,0.0002607,2]
[400724332,1767798655967,-194.927323,0.0002607,7]
[400724333,1767798655977,-194.927323,0.0002607,7]
[400724334,1767798655986,-194.927323,0.0002607,7]
[400724335,1767798655996,-194.927323,0.0002607,7]
[400724336,1767798656006,-214.456704,0.0002607,7]
[400724337,1767798656015,-214.456704,0.0002607,7]
[400724338,1767798656025,-214.456704,0.0002607,7]
[400724339,1767798656034,-214.456704,0.0002607,7]
[400724340,1767798656044,-151.0,0.0002607,7]
[400724341,1767798656054,-151.0,0.0002607,7]
[400724342,1767798656064,-151.0,0.0002607,7]
[400724343,1767798656073,-151.0,0.0002607,7]
[400724344,1767798656083,-205.742012,0.0002607,7]
[400724345,1767798656092,-205.742012,0.0002607,7]
[400724346,1767798656102,-205.742012,0.0002607,7]
[400724347,1767798656111,-205.742012,0.0002607,7]
[400724348,1767798656120,-151.0,0.0002607,7]
[400724349,1767798656130,-215.570059,0.0002607,7]
[400724350,1767798656140,-45804.8909226,0.0002607,2]
[400724351,1767798656149,-206.665209,0.0002607,7]
[400724352,1767798656159,-215.570059,0.0002607,7]
[400724353,1767798656168,-206.665209,0.0002607,7]
[400724354,1767798656178,-215.570059,0.0002607,7]
[400724355,1767798656187,-8831.11785104,0.0002607,2]
[400724356,1767798656197,-215.570059,0.0002607,7]
[400724357,1767798656209,-206.665209,0.0002607,7]
[400724358,1767798656218,-206.665209,0.0002607,7]
[400724359,1767798656229,-390.92977,0.0002607,7]
[400724360,1767798656238,-390.92977,0.0002607,7]
[400724361,1767798656249,-390.92977,0.0002607,7]
[400724362,1767798656258,-390.92977,0.0002607,7]
[400724363,1767798656268,-186.329815,0.0002607,7]
[400724364,1767798656277,-186.329815,0.0002607,7]
[400724365,1767798656287,-186.329815,0.0002607,7]
[400724366,1767798656298,-186.329815,0.0002607,7]
[400724367,1767798656308,-412.629762,0.0002607,7]
[400724368,1767798656318,-151.0,0.0002607,7]
[400724369,1767798656327,-412.629762,0.0002607,7]
[400724370,1767798656336,-222.050816,0.0002607,7]
[400724371,1767798656346,-412.629762,0.0002607,7]
[400724372,1767798656355,-412.629762,0.0002607,7]
[400724373,1767798656366,-187.815389,0.0002607,7]
[400724374,1767798656375,-187.815389,0.0002607,7]
[400724375,1767798656386,-187.815389,0.0002607,7]
[400724376,1767798656395,-187.815389,0.0002607,7]
[400724377,1767798656404,-151.0,0.0002607,7]
[400724378,1767798656418,-151.0,0.0002607,7]
[400724379,1767798656428,-151.0,0.0002607,7]
[400724380,1767798656438,-237.990209,0.0002607,7]
[400724381,1767798656448,-2083.304351,0.0002607,2]
[400724382,1767798656457,-151.0,0.0002607,7]
[400724383,1767798656466,-2083.304351,0.0002607,2]
[400724384,1767798656476,-2083.304351,0.0002607,2]
[400724385,1767798656485,-2083.304351,0.0002607,2]
[400724386,1767798656494,-151.0,0.0002607,7]
[400724387,1767798656504,-151.0,0.0002607,2]
[400724388,1767798656514,-226.840481,0.0002607,7]
[400724389,1767798656523,-151.0,0.0002607,7]
[400724390,1767798656533,-151.0,0.0002607,7]
[400724391,1767798656542,-151.0,0.0002607,7]
[400724392,1767798656562,-612.995739,0.0002607,7]
[400724393,1767798656571,-612.995739,0.0002607,7]
[400724394,1767798656581,-151.0,0.0002607,7]
[400724395,1767798656591,-612.995739,0.0002607,7]
[400724396,1767798656601,-151.0,0.0002607,7]
[400724397,1767798656611,-612.995739,0.0002607,7]
[400724398,1767798656622,-1664.343388,0.0002607,7]
[400724399,1767798656634,-1664.343388,0.0002607,7]
[400724400,1767798656646,-181.80617065,0.00026077,9]
[400724401,1767798656656,-3000.0,0.0002608,2]
[400724402,1767798656666,-151.0,0.0002608,7]
[400724403,1767798656676,-151.0,0.0002608,7]
[400724404,1767798656686,-183.522133,0.0002608,7]
[400724405,1767798656696,-209.524359,0.0002608,7]
[400724406,1767798656708,-209.524359,0.0002608,7]
[400724407,1767798656717,-209.524359,0.0002608,7]
[400724408,1767798656727,-209.524359,0.0002608,7]
[400724409,1767798656737,-151.0,0.0002608,7]
[400724410,1767798656747,-151.0,0.0002608,7]
[400724411,1767798656756,-241.004676,0.0002608,7]
[400724412,1767798656765,-241.004676,0.0002608,7]
[400724413,1767798656775,-241.004676,0.0002608,7]
[400724414,1767798656784,-241.004676,0.0002608,7]
[400724415,1767798656794,-151.0,0.0002608,7]
[400724416,1767798656805,-151.0,0.0002608,7]
[400724417,1767798656814,-206.889733,0.0002608,7]
[400724418,1767798656824,-151.0,0.0002608,7]
[400724419,1767798656833,-151.0,0.0002608,7]
[400724420,1767798656843,-151.0,0.0002608,7]
[400724421,1767798656852,-1626.684503,0.0002608,7]
[400724422,1767798656863,-1626.684503,0.0002608,7]
[400724423,1767798656873,-1626.684503,0.0002608,7]
[400724424,1767798656882,-151.0,0.0002608,7]
[400724425,1767798656892,-1626.684503,0.0002608,7]
[400724426,1767798656902,-151.0,0.0002608,7]
[400724427,1767798656911,-151.0,0.0002608,7]
[400724428,1767798656921,-530.111159,0.0002608,7]
[400724429,1767798656931,-1016.281206,0.0002608,7]
[400724430,1767798656941,-530.111159,0.0002608,7]
[400724431,1767798656951,-1016.281206,0.0002608,7]
[400724432,1767798656961,-530.111159,0.0002608,7]
[400724433,1767798656971,-225.672265,0.0002608,7]
[400724434,1767798656980,-1016.281206,0.0002608,7]
[400724435,1767798656990,-530.111159,0.0002608,7]
[400724436,1767798656999,-225.672265,0.0002608,7]
[400724437,1767798657008,-1016.281206,0.0002608,7]
[400724438,1767798657018,-225.672265,0.0002608,7]
[400724439,1767798657027,-225.672265,0.0002608,7]
[400724440,1767798657036,-218.702509,0.0002608,7]
[400724441,1767798657046,-609.666208,0.0002608,7]
[400724442,1767798657056,-218.702509,0.0002608,7]
[400724443,1767798657066,-609.666208,0.0002608,7]
[400724444,1767798657075,-218.702509,0.0002608,7]
[400724445,1767798657087,-609.666208,0.0002608,7]
[400724446,1767798657097,-218.702509,0.0002608,7]
[400724447,1767798657107,-609.666208,0.0002608,7]
[400724448,1767798657117,-184.812283,0.0002608,7]
[400724449,1767798657127,-184.812283,0.0002608,7]
[400724450,1767798657136,-184.812283,0.0002608,7]
[400724451,1767798657147,-184.812283,0.0002608,7]
[400724452,1767798657156,-634.815792,0.0002608,7]
[400724453,1767798657166,-151.0,0.0002608,7]
[400724454,1767798657176,-634.815792,0.0002608,7]
[400724455,1767798657185,-247.352857,0.0002608,7]
[400724456,1767798657196,-151.0,0.0002608,7]
[400724457,1767798657205,-634.815792,0.0002608,7]
[400724458,1767798657215,-247.352857,0.0002608,7]
[400724459,1767798657225,-634.815792,0.0002608,7]
[400724460,1767798657234,-247.352857,0.0002608,7]
[400724461,1767798657243,-247.352857,0.0002608,7]
[400724462,1767798657254,-3000.0,0.0002609,2]
[400724463,1767798657263,-1366.39,0.000261,14]
[400724464,1767798657274,-1185.12,0.000261,7]
[400724465,1767798657284,-3000.0,0.000261,2]
[400724466,1767798657293,-250.0,0.000261,10]
[400724467,1767798657303,-1041.66666667,0.000261,7]
[400724468,1767798657313,-3000.0,0.0002611,2]
[400724469,1767798657323,-250.0,0.00026113,2]
[400724470,1767798657332,-150.0,0.00026113,2]
[400724471,1767798657341,-150.0,0.00026113,2]
[400724472,1767798657351,-150.0,0.00026113,2]
[400724473,1767798657360,-150.0,0.00026113,2]
[400724474,1767798657370,-150.057,0.00026113,2]
[400724475,1767798657379,-1365.0,0.00026113,2]
[400724476,1767798657389,-2145.0,0.00026113,2]
[400724477,1767798657399,-628.0,0.00026113,2]
[400724478,1767798657410,-3000.0,0.0002612,2]
[400724479,1767798657420,-187.815389,0.0002612,7]
[400724480,1767798657429,-187.815389,0.0002612,7]
[400724481,1767798657439,-187.815389,0.0002612,7]
[400724482,1767798657448,-187.815389,0.0002612,7]
[400724483,1767798657459,-151.0,0.0002612,7]
[400724484,1767798657469,-209.486994,0.0002612,7]
[400724485,1767798657479,-2083.304351,0.0002612,2]
[400724486,1767798657489,-171.590841,0.0002612,7]
[400724487,1767798657499,-2083.304351,0.0002612,2]
[400724488,1767798657508,-2083.304351,0.0002612,2]
[400724489,1767798657519,-2083.304351,0.0002612,2]
[400724490,1767798657528,-45804.8909226,0.0002612,2]
[400724491,1767798657538,-8831.11785104,0.0002612,2]
[400724492,1767798657547,-1000.0,0.00026124,7]
[400724493,1767798657556,-4963.577836,0.0002613,2]
[400724494,1767798657565,-194.56620473,0.0002616,2]
[400724495,1767798657575,-172.0,0.00026179,2]
[400724496,1767798657584,-250.0,0.000262,10]
[400724497,1767798657594,-151.0,0.00026298,7]
[400724498,1767798657603,-151.0,0.00026298,7]
[400724499,1767798657613,-151.0,0.00026298,7]
[400724500,1767798657622,-151.0,0.00026298,7]
[400724501,1767798657631,-205.742012,0.00026298,7]
[400724502,1767798657640,-205.742012,0.00026298,7]
[400724503,1767798657650,-205.742012,0.00026298,7]
[400724504,1767798657660,-205.742012,0.00026298,7]
[400724505,1767798657670,-151.0,0.00026298,7]
[400724506,1767798657679,-215.570059,0.00026298,7]
[400724507,1767798657689,-206.665209,0.00026298,7]
[400724508,1767798657699,-215.570059,0.00026298,7]
[400724509,1767798657708,-206.665209,0.00026298,7]
[400724510,1767798657718,-215.570059,0.00026298,7]
[400724511,1767798657727,-215.570059,0.00026298,7]
[400724512,1767798657737,-206.665209,0.00026298,7]
[400724513,1767798657747,-206.665209,0.00026298,7]
[400724514,1767798657756,-404.210608,0.000263,10]
[400724515,1767798657765,-450.0,0.00026301,2]
[400724516,1767798657774,-151.0,0.00026308,7]
[400724517,1767798657784,-151.0,0.00026308,7]
[400724518,1767798657794,-151.528573,0.00026308,7]
[400724519,1767798657803,-194.927323,0.00026308,7]
[400724520,1767798657812,-194.927323,0.00026308,7]
[400724521,1767798657821,-194.927323,0.00026308,7]
[400724522,1767798657831,-194.927323,0.00026308,7]
[400724523,1767798657839,-214.456704,0.00026308,7]
[400724524,1767798657849,-214.456704,0.00026308,7]
[400724525,1767798657859,-214.456704,0.00026308,7]
[400724526,1767798657869,-214.456704,0.00026308,7]
[400724527,1767798657879,-1000.0,0.00026364,7]
[400724528,1767798657889,-521.15487598,0.00026371,2]
[400724529,1767798657899,-172.0,0.00026393,2]
[400724530,1767798657909,-176.23503178,0.00026444,2]
[400724531,1767798657919,-390.92977,0.0002645,7]
[400724532,1767798657931,-390.92977,0.0002645,7]
[400724533,1767798657941,-390.92977,0.0002645,7]
[400724534,1767798657950,-390.92977,0.0002645,7]
[400724535,1767798657960,-186.329815,0.0002645,7]
[400724536,1767798657970,-186.329815,0.0002645,7]
[400724537,1767798657979,-186.329815,0.0002645,7]
[400724538,1767798657990,-186.329815,0.0002645,7]
[400724539,1767798658000,-412.629762,0.0002645,7]
[400724540,1767798658010,-151.0,0.0002645,7]
[400724541,1767798658019,-412.629762,0.0002645,7]
[400724542,1767798658029,-412.629762,0.0002645,7]
[400724543,1767798658038,-412.629762,0.0002645,7]
[400724544,1767798658048,-172.0,0.00026455,2]
[400724545,1767798658057,-45804.8909226,0.0002647,2]
[400724546,1767798658067,-8831.11785104,0.0002647,2]
[400724547,1767798658077,-151.0,0.0002647,7]
[400724548,1767798658086,-151.0,0.0002647,2]
[400724549,1767798658096,-151.0,0.0002647,7]
[400724550,1767798658105,-151.0,0.0002647,7]
[400724551,1767798658114,-151.0,0.0002647,7]
[400724552,1767798658124,-612.995739,0.0002647,7]
[400724553,1767798658133,-612.995739,0.0002647,7]
[400724554,1767798658143,-151.0,0.0002647,7]
[400724555,1767798658152,-612.995739,0.0002647,7]
[400724556,1767798658162,-151.0,0.0002647,7]
[400724557,1767798658171,-612.995739,0.0002647,7]
[400724558,1767798658183,-1664.343388,0.0002647,7]
[400724559,1767798658192,-10000.0,0.0002648,2]
[400724560,1767798658201,-179.37835,0.00026528,2]
[400724561,1767798658210,-200.0,0.0002654,14]
[400724562,1767798658220,-1737.33709957,0.0002658,2]
[400724563,1767798658240,-3262.66290043,0.0002658,2]
[400724564,1767798658249,-151.0,0.0002658,7]
[400724565,1767798658258,-151.0,0.0002658,7]
[400724566,1767798658267,-151.0,0.0002658,7]
[400724567,1767798658276,-184.812283,0.0002658,7]
[400724568,1767798658286,-184.812283,0.0002658,7]
[400724569,1767798658296,-184.812283,0.0002658,7]
[400724570,1767798658306,-184.812283,0.0002658,7]